bitfinex-derivatives/quotes_BNBF0:USTF0_20251010
["timestamp","ask_amount","ask_price","bid_price","bid_amount"]
[1760065116987,1.9923223,1249.5,1247.3,0.54796101]
[1760065117187,1.9923223,1249.5,1247.0,0.59877321]
[1760065117387,1.9923223,1249.6,1247.1,0.54757483]
[1760065117588,1.9923223,1249.6,1247.2,0.54757483]
[1760065117884,1.9923223,1249.6,1247.3,0.54757483]
[1760065118087,1.9923223,1249.6,1246.9,0.59877321]
[1760065118288,1.9923223,1249.6,1247.0,0.5472281]
[1760065118583,1.9923223,1249.6,1247.1,0.5472281]
[1760065118783,1.9923223,1249.6,1247.2,0.5472281]
[1760065118987,1.9923223,1249.6,1247.3,0.5472281]
[1760065119285,1.9923223,1249.6,1246.8,0.59877321]
[1760065119488,0.13932009,1249.9,1246.8,0.59877321]
[1760065119489,1.9923223,1249.7,1246.9,0.5469153]
[1760065119685,1.9923223,1249.7,1247.0,0.5469153]
[1760065119885,1.9923223,1249.7,1247.1,0.5469153]
[1760065120089,1.9923223,1249.7,1247.2,0.5469153]
[1760065120293,1.9923223,1249.7,1246.8,0.59877321]
[1760065120591,0.13932009,1249.9,1246.9,0.54664582]
[1760065120791,0.13932009,1249.9,1247.0,0.54664582]
[1760065120991,0.13932009,1249.9,1247.1,0.54664582]
[1760065121188,0.13932009,1249.9,1247.2,0.54664582]
[1760065121392,0.13932009,1249.9,1246.7,0.59877321]
[1760065121593,0.13932009,1249.9,1246.8,0.54637089]
[1760065121891,0.13932009,1249.9,1246.9,0.54637089]
[1760065122189,0.13932009,1249.9,1247.0,0.54637089]
[1760065122396,0.13932009,1249.9,1247.1,0.54637089]
[1760065122687,0.13932009,1249.9,1247.2,0.54637089]
[1760065122891,0.13932009,1249.9,1246.7,0.59877321]
[1760065123090,0.13932009,1249.9,1246.8,0.54611587]
[1760065123289,0.13932009,1249.9,1246.9,0.54611587]
[1760065123494,0.13932009,1249.9,1247.0,0.54611587]
[1760065123694,0.13932009,1249.9,1247.1,0.54611587]
[1760065123894,0.13932009,1249.9,1247.2,0.54611587]
[1760065124093,0.13932009,1249.9,1246.7,0.59877321]
[1760065124291,0.13932009,1249.9,1246.8,0.54567451]
[1760065124494,0.13932009,1249.9,1246.9,0.54567451]
[1760065124693,0.13932009,1249.9,1247.0,0.54567451]
[1760065124892,0.13932009,1249.9,1247.1,0.54567451]
[1760065125096,0.13932009,1249.9,1247.2,0.54567451]
[1760065125297,0.13932009,1249.9,1246.7,0.59877321]
[1760065125493,0.13932009,1249.9,1246.8,0.54548271]
[1760065125697,0.13932009,1249.9,1246.9,0.54548271]
[1760065125894,0.13932009,1249.9,1246.7,0.59877321]
[1760065125895,0.13932009,1249.9,1247.0,0.54548271]
[1760065126094,0.13932009,1249.9,1247.1,0.54548271]
[1760065126298,0.13932009,1249.9,1247.2,0.54548271]
[1760065126499,0.13932009,1249.9,1246.6,0.59877321]
[1760065126694,0.19808252,1246.8,1246.7,0.54531236]
[1760065138605,0.19808252,1246.8,1246.7,0.74463433]
[1760065139007,0.19808252,1246.8,1246.7,1.13991846]
[1760065140407,0.19808252,1246.8,1246.7,1.3381361]
[1760065144913,0.19808252,1246.8,1246.7,0.74353]
[1760065145516,0.39600888,1246.8,1246.7,1.14008612]
[1760065145713,0.39600888,1246.8,1246.7,0.54531236]
[1760065146117,0.19808252,1246.8,1246.7,0.54531236]
[1760065146513,0.39590788,1246.8,1246.7,0.54531236]
[1760065147018,0.19808252,1246.8,1246.7,0.54531236]
[1760065149123,0.19808252,1246.8,1246.7,1.14008612]
[1760065150023,0.3958912,1246.8,1246.7,1.14008612]
[1760065150418,0.19808252,1246.8,1246.7,1.14008612]
[1760065153522,0.19808252,1246.8,1246.7,0.54531236]
[1760065167737,0.19808252,1246.8,1246.5,0.59762433]
[1760065168038,0.19808252,1246.8,1246.6,0.54479433]
[1760065168232,0.19808252,1246.8,1246.7,0.54479433]
[1760065173044,0.19808252,1246.8,1246.7,1.14241866]
[1760065173340,0.19808252,1246.8,1246.7,0.54479433]
[1760065183960,0.19808252,1246.8,1246.7,1.14241866]
[1760065187655,0.19808252,1246.8,1246.7,0.54479433]
[1760065201467,0.19808252,1246.8,1246.7,1.14241866]
[1760065201865,0.39716967,1246.8,1246.7,0.54479433]
[1760065202066,0.19808252,1246.8,1246.7,1.34208224]
[1760065202371,0.19808252,1246.8,1246.7,0.74301197]
[1760065202567,0.19808252,1246.8,1246.7,1.54125579]
[1760065202971,0.19808252,1246.8,1246.7,0.74301197]
[1760065203172,0.19808252,1246.8,1246.7,1.93894377]
[1760065203372,0.19808252,1246.8,1246.7,1.74072613]
[1760065203771,0.19808252,1246.8,1246.7,0.54479433]
[1760065215476,0.19808252,1246.8,1246.7,1.34272248]
[1760065219182,0.19808252,1246.8,1246.7,0.54479433]
[1760065223684,0.19808252,1246.8,1246.7,1.34272248]
[1760065223883,0.19808252,1246.8,1246.7,0.54479433]
[1760065225586,0.19808252,1246.8,1246.7,1.74072613]
[1760065227389,0.19808252,1246.8,1246.7,0.54479433]
[1760065229486,0.19808252,1246.8,1246.7,1.73726083]
[1760065230089,0.19808252,1246.8,1246.7,0.54479433]
[1760065230590,0.19808252,1246.8,1246.7,1.73726083]
[1760065230889,0.19808252,1246.8,1246.7,0.54479433]
[1760065231893,0.19808252,1246.8,1246.7,1.73726083]
[1760065232194,0.19808252,1246.8,1246.7,0.54479433]
[1760065232490,0.19808252,1246.8,1246.7,1.33964453]
[1760065232691,0.19808252,1246.8,1246.7,0.54479433]
[1760065233090,0.19808252,1246.8,1246.7,1.73678323]
[1760065234391,0.19808252,1246.8,1246.7,0.54479433]
[1760065236801,0.19808252,1246.8,1246.7,1.73678013]
[1760065236999,0.19808252,1246.8,1246.7,0.54479433]
[1760065244906,0.19808252,1246.8,1246.7,2.53801403]
[1760065245506,0.19808252,1246.8,1246.7,0.54479433]
[1760065246906,0.19808252,1246.8,1246.7,2.52551773]
[1760065250610,0.19808252,1246.8,1246.7,0.54479433]
[1760065250812,0.19808252,1246.8,1246.7,2.52358583]
[1760065251818,0.19808252,1246.8,1246.7,0.54479433]
[1760065272233,0.19808252,1246.8,1246.7,1.73512573]
[1760065272631,0.19808252,1246.8,1246.7,0.54479433]
[1760065275136,0.19808252,1246.8,1246.7,1.73586573]
[1760065276736,0.19808252,1246.8,1246.7,0.54479433]
[1760065278241,0.19808252,1246.8,1246.7,1.73586573]
[1760065278437,0.19808252,1246.8,1246.7,0.54479433]
[1760065279738,0.19808252,1246.8,1246.7,1.33916256]
[1760065280637,0.19808252,1246.8,1246.7,0.54479433]
[1760065287041,0.19808252,1246.8,1246.7,1.73677663]
[1760065287344,0.19808252,1246.8,1246.7,0.54479433]
[1760065302253,0.19808252,1246.8,1246.7,0.74326951]
[1760065303352,0.19808252,1246.8,1246.7,0.54479433]
[1760065320862,0.19808252,1246.8,1246.7,1.53945511]
[1760065321761,0.19808252,1246.8,1246.7,1.14176767]
[1760065321957,0.39588737,1246.8,1246.7,1.14176767]
[1760065322557,0.39588737,1246.8,1246.7,0.54479433]
[1760065322959,0.19808252,1246.8,1246.7,0.54479433]
[1760065327064,0.19808252,1246.8,1246.1,0.59697334]
[1760065327262,0.19808252,1246.8,1246.2,0.54047603]
[1760065327559,0.19808252,1246.8,1246.3,0.54047603]
[1760065327760,0.19808252,1246.8,1246.4,0.54047603]
[1760065328061,0.19808252,1246.8,1246.5,0.54047603]
[1760065328260,0.19808252,1246.8,1245.9,0.79590549]
[1760065328461,0.19808252,1246.8,1246.0,0.54053329]
[1760065328659,0.19808252,1246.8,1246.1,0.54053329]
[1760065328960,0.19808252,1246.8,1245.8,0.79590549]
[1760065328961,0.19808252,1246.8,1246.2,0.54053329]
[1760065329159,0.19808252,1246.8,1246.3,0.54053329]
[1760065329362,0.19808252,1246.8,1246.4,0.54053329]
[1760065329565,0.19808252,1246.8,1245.8,0.79590549]
[1760065329865,0.19770079,1246.0,1245.9,0.54027073]
[1760065330363,0.19770079,1246.0,1245.9,1.13724407]
[1760065330962,0.19770079,1246.0,1245.9,0.54027073]
[1760065331162,0.19770079,1246.0,1245.9,1.13724407]
[1760065332964,0.19770079,1246.0,1245.9,0.54027073]
[1760065338177,0.19770079,1246.0,1245.9,1.13724407]
[1760065338471,0.19770079,1246.0,1245.9,0.54027073]
[1760065338872,0.19770079,1246.0,1245.9,1.13724407]
[1760065339077,0.19770079,1246.0,1245.9,0.54027073]
[1760065339274,0.19770079,1246.0,1245.9,1.13724407]
[1760065339774,0.19770079,1246.0,1245.9,0.54027073]
[1760065340377,0.19770079,1246.0,1245.9,1.13724407]
[1760065344879,0.19770079,1246.0,1245.9,0.54027073]
[1760065345483,0.19770079,1246.0,1245.9,1.13724407]
[1760065350186,0.19770079,1246.0,1245.9,0.54027073]
[1760065358992,0.19770079,1246.0,1245.9,0.53825]
[1760065359296,0.19770079,1246.0,1245.9,1.13312808]
[1760065360993,0.19770079,1246.0,1245.9,0.53825]
[1760065362193,0.19770079,1246.0,1245.9,1.13338759]
[1760065362393,0.19770079,1246.2,1245.9,0.53837671]
[1760065362596,0.19770079,1246.4,1246.1,0.19893215]
[1760065362894,0.19770079,1246.4,1246.2,1.13328536]
[1760065363093,0.19770079,1246.4,1246.3,0.53837671]
[1760065363292,0.19770079,1246.5,1246.3,1.33410534]
[1760065363492,0.19770079,1246.5,1246.4,1.13331325]
[1760065367600,0.19808252,1246.8,1246.4,0.53837671]
[1760065367802,0.19808252,1246.8,1246.5,0.53837671]
[1760065368000,0.19808252,1246.8,1246.6,0.53837671]
[1760065368304,0.19808252,1246.8,1246.7,0.53837671]
[1760065374607,0.19808252,1246.8,1246.7,1.72401221]
[1760065375410,0.19808252,1246.8,1246.7,0.53837671]
[1760065376609,0.19808252,1246.8,1246.7,1.72401221]
[1760065376808,0.19808252,1246.8,1246.7,0.53837671]
[1760065378316,0.19808252,1246.8,1246.7,1.72401221]
[1760065378516,0.19808252,1246.8,1246.7,0.53837671]
[1760065380718,0.19808252,1246.8,1246.7,1.32836378]
[1760065381119,0.19808252,1246.8,1246.7,0.53837671]
[1760065381320,0.19808252,1246.8,1246.7,1.32836378]
[1760065384023,0.19808252,1246.8,1246.7,0.53837671]
[1760065384823,0.19808252,1246.8,1246.7,1.32836378]
[1760065390927,0.19808252,1246.8,1246.7,0.53837671]
[1760065392733,0.19808252,1246.8,1246.7,1.72156201]
[1760065393233,0.19808252,1246.8,1246.7,0.53837671]
[1760065398131,0.19808252,1246.8,1246.7,1.32725243]
[1760065398331,0.19808252,1246.8,1246.7,0.53837671]
[1760065398931,0.19808252,1246.8,1246.7,0.73564343]
[1760065399135,0.19808252,1246.8,1246.7,1.13026803]
[1760065399434,0.19808252,1246.8,1246.7,0.53837671]
[1760065401336,0.19808252,1246.8,1246.2,0.59189132]
[1760065401536,0.1965233,1246.3,1246.2,0.59189132]
[1760065401736,0.1965233,1246.3,1246.2,1.12788032]
[1760065407036,0.1965233,1246.3,1246.2,0.535989]
[1760065408340,0.1965233,1246.3,1246.2,1.12885623]
[1760065410842,0.1965233,1246.3,1246.2,0.535989]
[1760065411940,0.1965233,1246.3,1246.2,1.12885623]
[1760065414544,0.1965233,1246.3,1246.2,0.535989]
[1760065414940,0.19808252,1246.8,1246.2,0.535989]
[1760065415144,0.19808252,1246.8,1246.3,0.535989]
[1760065415342,0.19808252,1246.8,1246.4,0.535989]
[1760065415542,0.19808252,1246.8,1246.5,0.535989]
[1760065415745,0.19808252,1246.8,1246.6,0.535989]
[1760065416046,0.19808252,1246.8,1246.1,0.59286723]
[1760065416346,0.19698797,1246.2,1246.1,0.59286723]
[1760065416546,0.19698797,1246.2,1246.1,1.13002201]
[1760065422249,0.19698797,1246.2,1246.1,0.53715478]
[1760065422447,0.19808252,1246.8,1246.1,0.53715478]
[1760065422749,0.19808252,1246.8,1246.2,0.53715478]
[1760065422950,0.19808252,1246.8,1246.3,0.53715478]
[1760065423148,0.19808252,1246.8,1246.4,0.53715478]
[1760065423347,0.19808252,1246.8,1245.9,0.59286723]
[1760065423550,0.19808252,1246.8,1246.0,0.53759868]
[1760065423748,0.19808252,1246.8,1246.1,0.53759868]
[1760065423946,0.19808252,1246.8,1246.2,0.53759868]
[1760065424152,0.19808252,1246.8,1246.3,0.53759868]
[1760065424346,0.19808252,1246.8,1246.4,0.53759868]
[1760065424645,0.19808252,1246.8,1245.9,0.59286723]
[1760065424851,0.19808252,1246.8,1246.0,0.53748555]
[1760065425052,0.19808252,1246.8,1246.1,0.53748555]
[1760065425251,0.19808252,1246.8,1245.9,0.59286723]
[1760065425252,0.19808252,1246.8,1246.2,0.53748555]
[1760065425548,0.19808252,1246.8,1246.3,0.53748555]
[1760065425849,0.19808252,1246.8,1246.4,0.53748555]
[1760065426051,0.19808252,1246.8,1246.5,0.53737041]
[1760065426250,0.19808252,1246.8,1245.8,0.79013395]
[1760065426251,0.19808252,1246.8,1246.6,0.53737041]
[1760065426449,0.19808252,1246.8,1246.1,0.59286723]
[1760065426648,0.19687615,1246.3,1246.2,0.5372707]
[1760065426950,0.19687615,1246.3,1246.2,1.13013793]
[1760065429650,0.19808252,1246.8,1246.2,1.13013793]
[1760065429849,0.19808252,1246.8,1246.3,0.5372707]
[1760065430053,0.19808252,1246.8,1246.4,0.5372707]
[1760065430253,0.19808252,1246.8,1246.5,0.5372707]
[1760065430449,0.19808252,1246.8,1246.6,0.5372707]
[1760065430652,0.19808252,1246.8,1246.2,0.59286723]
[1760065430853,0.19808252,1246.8,1246.3,0.5376105]
[1760065431152,0.19808252,1246.8,1246.4,0.5376105]
[1760065431349,0.19808252,1246.8,1246.5,0.5376105]
[1760065431551,0.19808252,1246.8,1245.7,0.19726672]
[1760065431853,0.19695364,1245.9,1245.8,0.5378564]
[1760065438656,0.19695364,1245.9,1245.8,1.13196207]
[1760065439854,0.19695364,1245.9,1245.8,0.5378564]
[1760065440057,0.19808252,1246.8,1245.8,0.5378564]
[1760065440257,0.19808252,1246.8,1245.9,0.5378564]
[1760065440458,0.19808252,1246.8,1245.3,0.79137239]
[1760065440658,0.19808252,1246.8,1245.4,1.13225296]
[1760065440659,0.19674893,1245.5,1245.4,1.13225296]
[1760065440858,0.19674893,1245.6,1245.4,0.53814729]
[1760065441156,0.19674893,1245.6,1245.5,1.13290624]
[1760065442158,0.19674893,1245.6,1245.5,1.52428973]
[1760065443059,0.19674893,1245.6,1245.5,0.53814729]
[1760065446262,0.19674893,1245.6,1245.5,1.72133259]
[1760065450373,0.19674893,1245.6,1245.5,0.53814729]
[1760065454177,0.19674893,1245.6,1245.5,1.72901659]
[1760065454472,0.19674893,1245.6,1245.5,0.53814729]
[1760065460475,0.19674893,1245.6,1245.5,1.73600415]
[1760065462380,0.19674893,1245.6,1245.5,0.53814729]
[1760065463781,0.19674893,1245.6,1245.5,1.33685725]
[1760065464377,0.19674893,1245.6,1245.5,0.53814729]
[1760065467083,0.19674893,1245.6,1245.5,1.33687474]
[1760065467287,0.19674893,1245.6,1245.5,0.53814729]
[1760065470487,0.19674893,1245.6,1245.5,1.73637219]
[1760065470687,0.19674893,1245.6,1245.5,0.53814729]
[1760065473288,0.19674893,1245.6,1245.5,1.73660049]
[1760065473588,0.19674893,1245.6,1245.5,0.53814729]
[1760065475795,0.19674893,1245.6,1245.5,1.33729559]
[1760065475991,0.19674893,1245.6,1245.5,1.53708442]
[1760065476392,0.39453659,1245.6,1245.5,0.73793612]
[1760065476696,0.19674893,1245.6,1245.5,1.33738378]
[1760065476893,0.39450994,1245.6,1245.5,1.33738378]
[1760065477297,0.39450994,1245.6,1245.5,0.53814729]
[1760065477498,0.39450994,1245.6,1245.5,1.33732853]
[1760065477899,0.39450994,1245.6,1245.5,0.7379584]
[1760065482301,0.39450994,1245.6,1245.5,1.33732853]
[1760065482497,0.39450994,1245.6,1245.5,0.53814729]
[1760065483898,0.39450994,1245.6,1245.5,1.13755617]
[1760065484699,0.39450994,1245.6,1245.5,0.53814729]
[1760065501014,0.59109781,1245.6,1245.5,0.53814729]
[1760065501911,0.59109781,1245.6,1245.5,1.13524556]
[1760065507425,0.39450994,1245.6,1245.5,0.53814729]
[1760065510125,0.39450994,1245.6,1245.5,1.33412754]
[1760065510421,0.39450994,1245.6,1245.5,0.53814729]
[1760065514024,0.39450994,1245.6,1245.5,1.73153749]
[1760065514224,0.39450994,1245.6,1245.5,0.53814729]
[1760065514423,0.39450994,1245.6,1245.5,1.73153749]
[1760065515227,0.39450994,1245.6,1245.5,0.53814729]
[1760065528439,0.39450994,1245.6,1245.5,2.52015389]
[1760065529839,0.39450994,1245.6,1245.5,0.53814729]
[1760065530442,0.39450994,1245.6,1245.5,2.52015389]
[1760065530846,0.39450994,1245.6,1245.5,0.53814729]
[1760065531645,0.39450994,1245.6,1245.5,2.51316449]
[1760065532643,0.39450994,1245.6,1245.5,0.53814729]
[1760065534547,0.39450994,1245.6,1244.8,1.9750172]
[1760065534746,0.39450994,1245.6,1244.9,0.53683106]
[1760065534942,0.39450994,1245.6,1245.0,0.53683106]
[1760065535143,0.39450994,1245.6,1245.1,0.53683106]
[1760065535344,0.39450994,1245.6,1245.2,0.53683106]
[1760065535546,0.39450994,1245.6,1245.3,0.53683106]
[1760065535745,0.39450994,1245.6,1245.4,0.53683106]
[1760065535944,0.39450994,1245.6,1245.5,0.53683106]
[1760065544659,0.39450994,1245.6,1245.5,3.29253036]
[1760065546857,0.39450994,1245.6,1245.5,0.53683106]
[1760065550458,0.39450994,1245.6,1245.5,2.50408718]
[1760065551359,0.39450994,1245.6,1245.5,0.53683106]
[1760065554163,0.28005585,1245.6,1245.5,0.53683106]
[1760065560170,0.1998754,1245.6,1245.5,0.53683106]
[1760065566169,0.19776101,1245.6,1245.5,0.53683106]
[1760065566369,0.14314089,1245.6,1245.5,0.53683106]
[1760065572577,0.10272345,1245.6,1245.5,0.53683106]
[1760065578092,0.07387782,1245.6,1245.5,0.53683106]
[1760065578590,0.14082593,1245.9,1245.5,0.53683106]
[1760065578888,0.14082593,1245.9,1245.6,0.53683106]
[1760065579089,0.14082593,1245.9,1245.7,0.53683106]
[1760065579293,0.14082593,1245.9,1245.8,3.30468246]
[1760065581290,0.14082593,1245.9,1245.8,0.53683106]
[1760065584793,0.10245153,1245.9,1245.8,0.53683106]
[1760065590903,0.07464712,1245.9,1245.8,0.53683106]
[1760065595501,0.05445552,1245.9,1245.8,0.53683106]
[1760065604305,0.18321323,1246.1,1245.8,0.53683106]
[1760065604509,0.18321323,1246.1,1245.9,0.53683106]
[1760065604710,0.18321323,1246.1,1246.0,0.53683106]
[1760065608009,0.13416881,1246.1,1246.0,0.53683106]
[1760065610207,0.09846205,1246.1,1246.0,0.53683106]
[1760065610712,0.09846205,1246.1,1246.0,3.31777466]
[1760065612011,0.09846205,1246.1,1246.0,3.32972584]
[1760065612910,0.07208647,1246.1,1246.0,0.54878224]
[1760065616317,0.05283642,1246.1,1246.0,0.54878224]
[1760065617613,0.05283642,1246.1,1246.0,3.33310924]
[1760065618512,0.05283642,1246.1,1246.0,0.54878224]
[1760065620919,0.03875493,1246.1,1246.0,0.54878224]
[1760065622015,0.03875493,1246.1,1246.0,4.52028574]
[1760065622220,0.02844096,1246.1,1246.0,4.52028574]
[1760065624221,0.02844096,1246.1,1246.0,0.54878224]
[1760065628218,0.02088439,1246.1,1246.0,0.54878224]
[1760065628522,0.02088439,1246.1,1246.0,3.33396524]
[1760065629525,0.02088439,1246.1,1246.0,0.54878224]
[1760065630022,0.02088439,1246.1,1246.0,3.33396524]
[1760065631125,0.02088439,1246.1,1246.0,0.54878224]
[1760065633223,0.02088439,1246.1,1246.0,3.33396524]
[1760065635427,0.02088439,1246.1,1246.0,0.54878224]
[1760065636732,0.01533009,1246.1,1246.0,0.54878224]
[1760065638437,0.01533009,1246.1,1246.0,3.33429944]
[1760065639436,0.01533009,1246.1,1246.0,0.54878224]
[1760065641545,0.01533009,1246.1,1246.0,3.33375471]
[1760065642746,0.01120874,1246.1,1246.0,3.33375471]
[1760065644744,0.01120874,1246.1,1246.0,0.54878224]
[1760065647353,0.01120874,1246.1,1246.0,3.33297784]
[1760065648249,0.01120874,1246.1,1246.0,0.54878224]
[1760065648753,0.00720874,1246.1,1246.0,0.54878224]
[1760065652351,0.00720874,1246.1,1246.0,2.53631304]
[1760065652850,0.00720874,1246.1,1246.0,0.54878224]
[1760065654755,0.00720874,1246.1,1245.2,2.7834665]
[1760065654957,0.00720874,1246.1,1245.8,2.7834665]
[1760065655152,0.00720874,1246.1,1245.9,0.54924747]
[1760065655352,0.00720874,1246.1,1246.0,0.54924747]
[1760065658452,0.00720874,1246.1,1246.0,2.53471437]
[1760065660458,0.00720874,1246.1,1246.0,0.54924747]
[1760065660957,0.00720874,1246.1,1246.0,2.53438037]
[1760065661660,0.00720874,1246.1,1246.0,0.54924747]
[1760065665255,0.00320874,1246.1,1246.0,0.54924747]
[1760065680675,0.19705942,1247.4,1246.0,0.54924747]
[1760065680975,0.19705942,1247.4,1247.0,1.9900998]
[1760065681174,0.19705942,1247.4,1247.1,0.54924747]
[1760065681374,0.19705942,1247.4,1247.2,0.54924747]
[1760065681674,0.19705942,1247.4,1247.3,0.54924747]
[1760065689171,0.19705942,1247.4,1247.3,0.74868549]
[1760065689774,0.19705942,1247.4,1247.3,0.54924747]
[1760065691177,0.19705942,1247.4,1247.3,1.34699957]
[1760065692278,0.19705942,1247.4,1247.3,0.54924747]
[1760065698478,0.19705942,1247.4,1247.3,1.74584607]
[1760065700684,0.19705942,1247.4,1247.3,0.54924747]
[1760065705782,0.19705942,1247.4,1247.3,0.74874153]
[1760065706384,0.39501386,1247.4,1247.3,0.54924747]
[1760065707284,0.19705942,1247.4,1247.3,1.14782994]
[1760065710287,0.19705942,1247.4,1247.3,0.54924747]
[1760065718197,0.19705942,1247.4,1246.8,0.59858247]
[1760065718396,0.19705942,1247.4,1246.9,0.54987741]
[1760065718701,0.19705942,1247.4,1247.0,0.54987741]
[1760065719002,0.19705942,1247.4,1246.7,0.59858247]
[1760065719202,0.19705942,1247.4,1246.8,0.54988475]
[1760065719396,0.19705942,1247.4,1246.9,0.54988475]
[1760065719597,0.19705942,1247.4,1247.0,0.54988475]
[1760065719797,0.19705942,1247.4,1247.1,0.54988475]
[1760065720001,0.19705942,1247.4,1246.6,0.59858247]
[1760065720202,0.19705942,1247.4,1246.7,0.54957169]
[1760065720497,0.19705942,1247.4,1246.8,0.54957169]
[1760065720701,0.19705942,1247.4,1246.6,0.59858247]
[1760065720702,0.19705942,1247.4,1246.9,0.54957169]
[1760065720997,0.19705942,1247.4,1247.0,0.54957169]
[1760065721202,0.19705942,1247.4,1246.6,0.59858247]
[1760065721404,0.19705942,1247.4,1246.7,0.5489928]
[1760065721697,0.19705942,1247.4,1246.8,0.5489928]
[1760065721901,0.19705942,1247.4,1246.9,0.5489928]
[1760065722098,0.19705942,1247.4,1247.0,0.5489928]
[1760065722299,0.19705942,1247.4,1246.5,0.59858247]
[1760065722501,0.19705942,1247.4,1246.6,0.54871949]
[1760065722699,0.19705942,1247.4,1246.7,0.54871949]
[1760065722900,0.19705942,1247.4,1246.8,0.54871949]
[1760065723105,0.19705942,1247.4,1246.9,0.54871949]
[1760065723405,0.19705942,1247.4,1247.0,0.54871949]
[1760065723605,0.19705942,1247.4,1246.6,0.59858247]
[1760065723806,0.19705942,1247.4,1246.7,0.54845294]
[1760065724005,0.19705942,1247.4,1246.8,0.54845294]
[1760065724201,0.19705942,1247.4,1246.6,0.59858247]
[1760065724202,0.19705942,1247.4,1246.9,0.54845294]
[1760065724402,0.19705942,1247.4,1246.6,0.59858247]
[1760065724403,0.19705942,1247.4,1247.0,0.54845294]
[1760065724607,0.19705942,1247.4,1247.1,0.54845294]
[1760065724809,0.19705942,1247.4,1247.2,0.54815265]
[1760065725105,0.19705942,1247.4,1247.3,0.54815265]
[1760065735916,0.19705942,1247.4,1246.6,0.59858247]
[1760065736115,0.19705942,1247.4,1246.7,0.54784183]
[1760065736316,0.19705942,1247.4,1246.8,0.54784183]
[1760065736610,0.19705942,1247.4,1246.9,0.54784183]
[1760065736812,0.19705942,1247.4,1247.0,0.54784183]
[1760065737010,0.19705942,1247.4,1247.1,0.54784183]
[1760065737315,0.19705942,1247.4,1247.2,0.54784183]
[1760065737515,0.19705942,1247.4,1246.6,0.59858247]
[1760065737712,0.19705942,1247.4,1246.7,0.54795633]
[1760065737912,0.19705942,1247.4,1246.8,0.54795633]
[1760065738116,0.19705942,1247.4,1246.9,0.54795633]
[1760065738316,0.19705942,1247.4,1247.0,0.54795633]
[1760065738613,0.19705942,1247.4,1247.1,0.54795633]
[1760065738912,0.19705942,1247.4,1246.6,0.59858247]
[1760065738913,0.19705942,1247.4,1247.2,0.54795633]
[1760065739114,0.19705942,1247.4,1246.6,0.59858247]
[1760065739413,0.19650786,1246.7,1246.6,0.59858247]
[1760065739613,0.19650786,1246.7,1246.6,1.14663579]
[1760065740117,0.19650786,1246.7,1246.6,0.54805332]
[1760065740814,0.19650786,1246.7,1246.6,0.74754738]
[1760065741919,0.19650786,1246.7,1246.6,1.54070107]
[1760065743021,0.19650786,1246.7,1246.6,0.74754738]
[1760065745123,0.19650786,1246.7,1246.6,0.54805332]
[1760065780857,0.19650786,1246.7,1246.6,1.143468]
[1760065786261,0.19650786,1246.7,1246.6,0.54805332]
[1760065787462,0.19650786,1246.7,1246.6,1.14616654]
[1760065790565,0.19650786,1246.7,1246.6,0.54805332]
[1760065790763,0.19650786,1246.7,1246.6,1.1462796]
[1760065797866,0.19650786,1246.7,1246.6,0.54805332]
[1760065798066,0.39420922,1246.7,1246.6,1.1462796]
[1760065800066,0.19650786,1246.7,1246.6,1.1462796]
[1760065800369,0.19650786,1246.7,1246.6,0.54805332]
[1760065802170,0.19650786,1246.7,1246.6,1.1462796]
[1760065802466,0.19650786,1246.7,1246.6,0.54805332]
[1760065803366,0.19650786,1246.7,1246.6,1.1462796]
[1760065805170,0.19650786,1246.7,1246.6,0.54805332]
[1760065805567,0.19650786,1246.7,1246.6,1.14701832]
[1760065806270,0.19650786,1246.7,1246.6,0.54805332]
[1760065807170,0.39442791,1246.7,1246.6,0.54805332]
[1760065807369,0.19650786,1246.7,1246.6,0.54805332]
[1760065807974,0.39442371,1246.7,1246.6,0.54805332]
[1760065808174,0.39442371,1246.7,1246.6,1.14713639]
[1760065808374,0.39442371,1246.7,1246.6,0.54805332]
[1760065808671,0.19650786,1246.7,1246.6,0.54805332]
[1760065810271,0.19650786,1246.7,1246.6,1.14713639]
[1760065811877,0.19650786,1246.7,1246.6,0.54805332]
[1760065813677,0.19650786,1246.7,1246.6,1.14715078]
[1760065813879,0.19650786,1246.7,1246.6,0.54805332]
[1760065814075,0.19650786,1246.7,1246.6,1.14715078]
[1760065814274,0.19650786,1246.7,1246.6,0.54805332]
[1760065820078,0.19650786,1246.7,1246.6,1.14709295]
[1760065820376,0.19650786,1246.7,1246.6,0.54805332]
[1760065826485,0.19650786,1246.7,1246.6,1.34120701]
[1760065826789,0.19650786,1246.7,1246.6,0.54805332]
[1760065827289,0.19650786,1246.7,1246.6,1.74465192]
[1760065827790,0.19650786,1246.7,1246.6,0.54805332]
[1760065853508,0.19650786,1246.7,1246.6,1.73789942]
[1760065853910,0.19650786,1246.7,1246.6,0.54805332]
[1760065854411,0.19650786,1246.7,1246.6,1.3415228]
[1760065854707,0.19650786,1246.7,1246.6,1.53989528]
[1760065859914,0.19650786,1246.7,1246.6,0.54805332]
[1760065861411,0.19650786,1246.7,1246.6,1.14347043]
[1760065861616,0.19650786,1246.7,1246.6,0.54805332]
[1760065898733,0.19650786,1246.7,1246.6,1.14347043]
[1760065899136,0.19650786,1246.7,1246.6,0.54805332]
[1760065899336,0.19650786,1246.7,1246.6,1.14347043]
[1760065904342,0.19650786,1246.7,1246.6,0.54805332]
[1760065904540,0.39317996,1246.7,1246.6,0.54805332]
[1760065907041,0.39317996,1246.7,1246.6,1.3415228]
[1760065907441,0.39317996,1246.7,1246.6,0.54805332]
[1760065959294,0.39317996,1246.7,1246.6,2.53815312]
[1760065959689,0.39317996,1246.7,1246.6,0.54805332]
[1760065976702,0.39317996,1246.7,1246.6,2.54127862]
[1760065979805,0.39317996,1246.7,1246.6,0.54805332]
[1760065993620,0.39317996,1246.7,1246.6,2.54353957]
[1760065994116,0.39317996,1246.7,1246.6,0.54805332]
[1760065998625,0.39317996,1246.7,1246.6,2.54283692]
[1760065999622,0.39317996,1246.7,1246.6,0.54805332]
[1760066002523,0.39317996,1246.7,1246.6,2.54195132]
[1760066003024,0.29230792,1246.7,1246.6,3.32898702]
[1760066004029,0.29230792,1246.7,1246.6,0.54805332]
[1760066004530,0.29230792,1246.7,1246.6,3.33937202]
[1760066005629,0.29230792,1246.7,1246.6,0.54805332]
[1760066005827,0.29230792,1246.7,1246.6,3.33906742]
[1760066007026,0.29230792,1246.7,1246.6,0.54805332]
[1760066009432,0.29230792,1246.7,1246.6,2.54162362]
[1760066009930,0.29230792,1246.7,1246.6,0.54805332]
[1760066011434,0.29230792,1246.7,1246.6,2.54111002]
[1760066012332,0.29230792,1246.7,1246.6,0.54805332]
[1760066015139,0.21832826,1246.7,1246.6,0.54805332]
[1760066017340,0.21832826,1246.7,1246.6,4.52960112]
[1760066019246,0.21832826,1246.7,1246.6,0.54805332]
[1760066021143,0.16365971,1246.7,1246.6,0.54805332]
[1760066027546,0.07405856,1246.7,1246.6,0.54805332]
[1760066033646,0.05596832,1246.7,1246.6,0.54805332]
[1760066038050,0.05596832,1246.7,1246.6,4.51436142]
[1760066040157,0.05596832,1246.7,1246.6,0.54805332]
[1760066064676,0.04224573,1246.7,1246.6,0.54805332]
[1760066070686,0.03191902,1246.7,1246.6,0.54805332]
[1760066075782,0.03191902,1246.7,1246.4,3.9723128]